bitfinex-derivatives/quotes_ETHF0:USTF0_20251213
["timestamp","ask_amount","ask_price","bid_price","bid_amount"]
[1765595020646,1.4518,3087.6,3087.5,4.3766]
[1765595023154,1.4518,3087.6,3087.5,1.1688]
[1765595024157,1.4518,3087.6,3087.5,0.4428]
[1765595024350,1.4518,3087.3,3087.2,1.48540755]
[1765595025452,0.7268,3087.3,3087.2,1.48540755]
[1765595026955,0.72925012,3087.7,3087.6,1.4817]
[1765595027258,1.45425012,3087.7,3087.6,1.4817]
[1765595027660,1.45425012,3087.7,3087.6,0.726]
[1765595028160,1.4518,3087.6,3087.5,1.1913]
[1765595028461,1.4518,3087.6,3087.5,1.947]
[1765595029462,1.4518,3087.6,3087.5,0.4653]
[1765595029654,1.4518,3087.3,3087.2,1.48540755]
[1765595029858,0.7268,3087.3,3087.2,1.48540755]
[1765595030059,0.00245012,3087.7,3087.2,1.48540755]
[1765595030261,1.4518,3087.6,3087.5,1.1913]
[1765595030964,1.4518,3087.6,3087.5,1.947]
[1765595039868,4.68705012,3087.7,3087.6,1.414]
[1765595040859,4.68705012,3087.7,3087.6,0.7114]
[1765595041170,1.4768,3087.6,3087.5,1.1767]
[1765595042470,1.4768,3087.6,3087.5,0.4653]
[1765595042669,1.4768,3087.6,3087.5,1.1767]
[1765595046671,1.4768,3087.6,3087.5,1.8793]
[1765595053281,2.47458135,3087.6,3087.5,1.8793]
[1765595067999,3.16699154,3087.6,3087.5,1.8793]
[1765595075000,3.16699154,3087.6,3087.5,1.1767]
[1765595078603,3.16699154,3087.6,3087.5,0.4653]
[1765595079203,3.16699154,3087.6,3087.5,1.1766]
[1765595081303,2.47458135,3087.6,3087.5,1.1766]
[1765595081902,2.47458135,3087.6,3087.5,1.927]
[1765595085503,2.47458135,3087.6,3087.5,0.4653]
[1765595087205,2.47458135,3087.6,3087.5,1.1766]
[1765595087704,2.47458135,3087.6,3087.5,0.4653]
[1765595088105,2.47458135,3087.6,3087.5,1.1766]
[1765595091504,0.99778135,3087.6,3087.5,1.9008]
[1765595091801,0.99778135,3087.6,3087.5,2.59319465]
[1765595092007,3.21025012,3087.7,3087.6,1.4433]
[1765595092206,4.20925191,3087.7,3087.6,1.4433]
[1765595094312,4.95685191,3087.7,3087.6,1.4433]
[1765595094506,4.20925191,3087.7,3087.6,1.4433]
[1765595096904,3.21025012,3087.7,3087.6,1.4433]
[1765595098510,3.21025012,3087.7,3087.6,2.13569465]
[1765595102611,0.00245012,3087.7,3087.6,1.4433]
[1765595102806,0.00245012,3087.7,3087.6,2.13569465]
[1765595103519,3.2078,3088.2,3088.1,1.4532]
[1765595103818,3.2078,3088.2,3088.1,2.14559465]
[1765595104519,3.21155623,3088.2,3088.1,2.14559465]
[1765595104909,3.95915623,3088.2,3088.1,2.14559465]
[1765595105620,3.21155623,3088.2,3088.1,2.14559465]
[1765595110721,0.00375623,3088.2,3088.1,2.14559465]
[1765595111924,0.75135623,3088.2,3088.1,2.14559465]
[1765595113825,0.00375623,3088.2,3088.1,2.14559465]
[1765595123828,0.76855623,3088.2,3088.1,2.14559465]
[1765595124927,0.76855623,3088.2,3088.1,2.1451386]
[1765595127934,0.76855623,3088.2,3088.1,1.4532]
[1765595129332,1.49125623,3088.2,3088.1,1.4532]
[1765595130839,1.49125623,3088.2,3088.1,0.7212]
[1765595131139,1.4746,3088.1,3088.0,1.1673]
[1765595131337,1.4746,3088.1,3088.0,1.947]
[1765595132135,4.6824,3088.1,3088.0,1.1673]
[1765595132740,4.6824,3088.1,3088.0,1.947]
[1765595133935,3.9597,3088.1,3088.0,1.947]
[1765595136352,0.7519,3088.1,3088.0,1.947]
[1765595137549,0.75565623,3088.2,3088.1,1.4938]
[1765595137849,0.00375623,3088.2,3088.1,1.4938]
[1765595139752,0.75565623,3088.2,3088.1,1.4938]
[1765595140053,1.47835623,3088.2,3088.1,1.4938]
[1765595140753,0.75565623,3088.2,3088.1,1.4938]
[1765595141555,1.47835623,3088.2,3088.1,1.4938]
[1765595150062,1.47835623,3088.2,3088.1,0.7141]
[1765595152662,1.47835623,3088.2,3088.1,1.4794]
[1765595155665,2.47329513,3088.2,3088.1,1.4794]
[1765595156552,2.47329513,3088.2,3088.0,0.4532]
[1765595156553,1.4618,3088.1,3088.0,1.2175]
[1765595156958,1.4618,3088.1,3088.0,1.9828]
[1765595162566,0.721,3088.1,3088.0,1.9828]
[1765595163066,1.4618,3088.1,3088.0,1.9828]
[1765595165969,0.721,3088.1,3088.0,1.9828]
[1765595169271,1.4618,3088.1,3088.0,1.9828]
[1765595169470,2.45692695,3088.1,3088.0,0.4532]
[1765595169774,0.721,3087.6,3087.5,1.9687]
[1765595175276,2.45565804,3088.0,3087.9,0.7643]
[1765595179881,6.32165804,3088.0,3087.9,0.7643]
[1765595180583,9.52945804,3088.0,3087.9,0.7643]
[1765595183583,9.52945804,3088.0,3087.9,1.5118]
[1765595185785,6.32165804,3088.0,3087.9,1.5118]
[1765595185986,9.52945804,3088.0,3087.9,1.5118]
[1765595187482,9.52945804,3088.0,3087.9,0.7643]
[1765595187988,10.22167996,3088.0,3087.9,0.7643]
[1765595188182,10.22168037,3088.0,3087.9,0.7643]
[1765595189187,10.22168037,3088.0,3087.5,0.4391]
[1765595189387,9.22782233,3088.0,3087.9,0.7788]
[1765595189584,10.22566825,3088.0,3087.9,0.7788]
[1765595193191,10.22566825,3088.0,3087.9,1.5263]
[1765595193390,9.53344592,3088.0,3087.9,0.7788]
[1765595193589,3.2078,3088.0,3087.9,1.5263]
[1765595196897,3.935,3088.0,3087.9,1.5263]
[1765595198600,4.6946,3088.0,3087.9,1.5263]
[1765595199998,1.4868,3088.0,3087.9,1.5263]
[1765595201599,0.7272,3087.6,3087.5,1.9654]
[1765595202400,2.17902233,3087.9,3087.8,0.7788]
[1765595205001,2.17902233,3087.9,3087.8,1.5263]
[1765595206102,1.4868,3087.6,3087.5,0.4391]
[1765595206304,1.4868,3087.3,3087.2,1.53000755]
[1765595207293,0.7272,3087.3,3087.2,1.53000755]
[1765595214609,2.10872233,3087.6,3087.5,1.2075]
[1765595216214,1.4165,3087.6,3087.5,1.2075]
[1765595216516,2.10872233,3087.6,3087.5,1.2075]
[1765595219029,2.10872233,3087.6,3087.5,1.9132]
[1765595220616,1.40302233,3087.6,3087.5,1.9132]
[1765595220821,0.7108,3087.6,3087.5,1.9132]
[1765595222023,1.4165,3087.6,3087.5,0.4379]
[1765595222226,0.7108,3087.3,3087.2,1.47900755]
[1765595222427,2.10882178,3087.3,3087.2,1.47900755]
[1765595223924,2.10882178,3087.3,3087.2,0.00370755]
[1765595224428,2.10882178,3087.3,3087.2,0.77330755]
[1765595228030,2.10882178,3087.3,3087.2,1.47900755]
[1765595230229,1.40312178,3087.3,3087.2,1.47900755]
[1765595230633,0.7108,3087.3,3087.2,1.47900755]
[1765595233138,1.4165,3087.3,3087.2,1.47900755]
[1765595233837,0.7108,3087.3,3087.2,1.47900755]
[1765595234636,1.4165,3087.3,3087.2,1.47900755]
[1765595235439,0.7108,3087.3,3087.2,1.47900755]
[1765595237339,1.4165,3087.3,3087.2,1.47900755]
[1765595239332,3.2078,3087.6,3087.5,1.9267]
[1765595239639,3.9368,3087.6,3087.5,1.9267]
[1765595241535,0.729,3087.6,3087.5,1.9267]
[1765595243136,1.4368,3087.6,3087.5,1.9267]
[1765595244547,0.729,3087.6,3087.5,1.9267]
[1765595245243,1.4736,3087.3,3087.2,0.00370755]
[1765595245444,1.4736,3087.3,3087.2,1.49250755]
[1765595247039,1.4736,3087.3,3087.2,0.77920755]
[1765595247243,1.4736,3087.3,3087.2,0.00370755]
[1765595251245,2.47162708,3087.3,3087.2,0.00370755]
[1765595262562,2.47062626,3087.3,3087.2,0.00370755]
[1765595268965,5.67842626,3087.3,3087.2,0.00370755]
[1765595276669,5.67842626,3087.3,3086.5,3.65546042]
[1765595276869,0.69256977,3087.1,3086.5,3.65546042]
[1765595277071,0.7332,3086.6,3086.5,5.15606042]
[1765595277771,0.7332,3086.6,3086.5,5.15844353]
[1765595280270,0.99454799,3087.0,3086.9,1.5006]
[1765595281070,1.72774799,3087.0,3086.9,1.5006]
[1765595281270,0.99454799,3087.0,3086.9,1.5006]
[1765595281470,1.72774799,3087.0,3086.9,1.5006]
[1765595287371,0.99454799,3087.0,3086.9,1.5006]
[1765595291777,1.72774799,3087.0,3086.9,1.5006]
[1765595292179,2.43544799,3087.0,3086.9,1.5006]
[1765595293879,2.43544799,3087.0,3086.9,0.7602]
[1765595294082,0.7332,3086.7,3086.6,4.7084]
[1765595295070,1.4409,3086.7,3086.6,3.968]
[1765595295275,1.4409,3086.6,3086.5,0.00724353]
[1765595295974,2.43589968,3086.6,3086.5,0.46484353]
[1765595296378,1.4409,3086.6,3086.5,0.46484353]
[1765595296779,1.4409,3086.6,3086.5,0.00724353]
[1765595305483,1.4409,3086.6,3086.5,1.95834353]
[1765595307786,3.2078,3086.8,3086.7,1.5172]
[1765595307985,3.2078,3087.2,3086.7,1.5172]
[1765595308182,1.5297,3086.6,3086.5,0.44114353]
[1765595308680,1.5297,3086.6,3086.5,1.19064353]
[1765595308887,1.5297,3086.6,3086.5,1.95834353]
[1765595312082,0.7534,3086.6,3086.5,1.95834353]
[1765595312288,1.44612416,3086.8,3086.7,1.5172]
[1765595315685,2.22242416,3087.0,3086.9,1.5172]
[1765595315885,3.22543665,3087.0,3086.9,1.5172]
[1765595318193,3.22535646,3087.0,3086.9,1.5172]
[1765595325506,1.00301249,3087.0,3086.9,1.5172]
[1765595326000,5.43014397,3087.2,3087.1,1.5172]
[1765595326198,4.96494745,3087.2,3087.1,1.5172]
[1765595326503,4.21154745,3087.2,3087.1,1.5172]
[1765595327906,4.96494745,3087.2,3087.1,1.5172]
[1765595328402,3.9612,3087.2,3087.1,1.5172]
[1765595329009,0.7534,3087.2,3087.1,1.5172]
[1765595329602,1.75656062,3087.3,3087.2,1.5172]
[1765595329800,1.00316062,3087.3,3087.2,1.5172]
[1765595330002,4.08777315,3087.4,3087.3,1.5172]
[1765595330198,3.9612,3087.5,3087.4,1.5172]
[1765595335913,0.7534,3087.5,3087.4,1.5172]
[1765595336111,3.9612,3087.5,3087.4,1.5172]
[1765595336611,3.2078,3087.5,3087.4,1.5172]
[1765595337005,3.9482,3087.5,3087.4,1.5172]
[1765595342521,0.7404,3087.5,3087.4,1.5172]
[1765595346822,0.69264397,3087.8,3087.7,1.4768]
[1765595346823,1.43304397,3087.8,3087.7,1.4768]
[1765595347027,1.4548,3088.1,3088.0,1.1629]
[1765595347229,1.4548,3088.1,3088.0,1.921]
[1765595347526,1.4548,3088.1,3088.0,1.1629]
[1765595349127,1.4548,3088.1,3088.0,0.4442]
[1765595350622,2.14685315,3088.1,3088.0,0.4442]
[1765595351125,0.7404,3087.7,3087.6,5.37665315]
[1765595352933,0.69205315,3088.1,3087.6,5.37665315]
[1765595355432,0.7404,3087.7,3087.6,4.6846]
[1765595356136,0.69205315,3088.1,3087.6,4.6846]
[1765595356434,0.69205315,3088.1,3087.6,1.4768]
[1765595356734,2.14685315,3088.1,3088.0,0.4442]
[1765595358432,3.14292179,3088.1,3088.0,0.4442]
[1765595360636,3.14292179,3088.1,3088.0,1.1629]
[1765595361940,3.14292179,3088.1,3088.0,0.4442]
[1765595362139,3.14292179,3088.1,3088.0,1.1728]
[1765595365240,3.14292179,3088.1,3088.0,0.4442]
[1765595365542,3.14292179,3088.1,3088.0,1.1985]
[1765595367344,3.14292179,3088.1,3088.0,1.9008]
[1765595371746,3.14440302,3088.1,3088.0,1.9008]
[1765595373434,0.72515623,3088.2,3088.1,1.4566]
[1765595373640,0.00375623,3088.2,3088.1,1.4566]
[1765595406270,0.00375623,3088.2,3088.1,4.6644]
[1765595416977,0.00375623,3088.2,3088.1,1.4566]
[1765595417178,0.00375623,3088.2,3088.1,4.6644]
[1765595422187,0.00375623,3088.2,3088.1,1.4566]
[1765595422388,0.00375623,3088.2,3088.1,4.6644]
[1765595438906,0.00375623,3088.2,3088.1,1.4566]
[1765595439100,0.00375623,3088.2,3088.1,4.6644]
[1765595445203,1.41495623,3088.2,3088.1,3.9621]
[1765595445507,1.41495623,3088.2,3088.1,3.9848]
[1765595445806,1.41495623,3088.2,3088.1,4.7283]
[1765595447009,0.70885623,3088.2,3088.1,4.7283]
[1765595449009,1.40099181,3088.2,3088.1,4.7283]
[1765595456611,0.69589181,3088.2,3088.1,4.7283]
[1765595460319,1.44449181,3088.2,3088.1,4.7283]
[1765595460920,0.69589181,3088.2,3088.1,1.5205]
[1765595461719,1.44449181,3088.2,3088.1,1.5205]
[1765595461914,1.4691,3088.1,3088.0,0.4442]
[1765595462314,1.4691,3088.1,3088.0,1.2214]
[1765595462515,1.4691,3088.1,3088.0,1.9657]
[1765595463126,0.00375623,3088.2,3088.1,1.5215]
[1765595469732,0.00375623,3088.2,3088.1,4.7293]
[1765595482144,0.00375623,3088.2,3088.1,1.5215]
[1765595505962,0.73625623,3088.2,3088.1,1.5215]
[1765595507460,1.47965623,3088.2,3088.1,1.5215]
[1765595507662,1.47965623,3088.2,3088.1,0.7772]
[1765595507858,0.73625623,3088.2,3088.1,1.4801]
[1765595512069,1.511,3088.1,3088.0,1.1906]
[1765595513670,1.511,3088.1,3088.0,1.9479]
[1765595515965,0.7583,3088.1,3088.0,1.9479]
[1765595517067,1.511,3088.1,3088.0,1.9479]
[1765595518874,0.7583,3088.1,3088.0,1.9479]
[1765595520163,1.45425035,3088.2,3088.1,1.5037]
[1765595520364,0.76205623,3088.2,3088.1,1.5037]
[1765595521679,0.00375623,3088.2,3088.1,1.5037]
[1765595534897,0.00375623,3088.2,3088.1,4.7115]
[1765595536298,0.00375623,3088.2,3088.1,1.5037]
[1765595536598,0.00375623,3088.2,3088.1,4.7115]
[1765595538497,0.00375623,3088.2,3088.1,1.5037]
[1765595538700,0.00375623,3088.2,3088.1,4.7115]
[1765595562719,0.70755623,3088.2,3088.1,4.7115]
[1765595562920,0.00375623,3088.2,3088.1,4.7115]
[1765595567025,0.00375623,3088.2,3088.1,5.40355576]
[1765595569827,0.00375623,3088.2,3088.1,4.7115]
[1765595572630,0.00375623,3088.2,3088.1,5.40355576]
[1765595574931,0.00375623,3088.2,3088.1,4.7115]
[1765595577022,0.00375623,3088.2,3088.1,5.40329428]
[1765595579229,0.00375623,3088.2,3088.1,4.7115]
[1765595594741,0.00375623,3088.2,3088.1,1.5037]
[1765595594939,0.00375623,3088.2,3088.1,4.7115]
[1765595602141,0.00375623,3088.2,3088.1,1.5037]
[1765595602346,0.00375623,3088.2,3088.1,4.7115]
[1765595605752,0.00375623,3088.2,3088.1,1.5037]
[1765595606052,0.00375623,3088.2,3088.1,4.7115]
[1765595607647,0.75855623,3088.2,3088.1,4.7115]
[1765595608053,0.00375623,3088.2,3088.1,4.7115]
[1765595608552,1.51215623,3088.2,3088.1,4.7115]
[1765595608753,8.50337017,3088.2,3088.1,3.2078]
[1765595608960,9.19516445,3088.2,3088.1,2.74175678]
[1765595609164,1.5084,3087.7,3087.6,3.2078]
[1765595609349,2.20081072,3087.7,3087.6,3.2078]
[1765595617954,2.20083078,3087.7,3087.6,3.2078]
[1765595619858,2.20083078,3087.7,3087.6,3.9482]
[1765595621964,2.20083078,3087.7,3087.6,4.7209]
[1765595624166,1.44723078,3087.7,3087.6,4.7209]
[1765595624767,2.20083078,3087.7,3087.6,4.7209]
[1765595626068,1.44723078,3087.7,3087.6,4.7209]
[1765595626665,1.44723078,3087.7,3087.6,1.5131]
[1765595627464,0.69243078,3087.7,3087.6,1.5131]
[1765595628768,1.44723078,3087.7,3087.6,1.5131]
[1765595634071,1.46933078,3087.7,3087.6,1.5131]
[1765595636872,0.7769,3087.7,3087.6,1.5131]
[1765595638374,2.46026398,3087.9,3087.8,1.4766]
[1765595639074,3.2078,3088.1,3088.0,1.9241]
[1765595639272,0.00375623,3088.2,3088.1,1.4766]
[1765595650496,0.00375623,3088.2,3088.1,5.37628594]
[1765595664306,0.00375623,3088.2,3088.1,2.16848594]
[1765595664504,0.00375623,3088.2,3088.1,5.37628594]
[1765595675118,0.00375623,3088.2,3088.1,5.37619602]
[1765595677918,0.00375623,3088.2,3088.1,5.37621271]
[1765595687718,0.00375623,3088.2,3088.1,5.53810271]
[1765595688730,3.2078,3088.9,3088.8,1.4991]
[1765595688929,4.17362325,3088.9,3088.8,2.19091271]
[1765595689434,4.90572325,3088.9,3088.8,2.19091271]
[1765595689632,0.7321,3088.9,3088.8,2.19091271]
[1765595689925,0.73455823,3088.9,3088.8,2.19327026]
[1765595690131,0.00245823,3088.9,3088.8,2.19327026]
[1765595691120,0.00245823,3088.9,3088.8,2.88508297]
[1765595691325,0.00245823,3088.9,3088.8,2.19327026]
[1765595696230,0.00245823,3088.9,3088.8,2.88508297]
[1765595696430,0.00245823,3088.9,3088.8,2.19327026]
[1765595703544,0.00245823,3088.9,3088.8,1.50145755]
[1765595703734,0.00245823,3088.9,3088.8,2.19327026]
[1765595705739,0.00245823,3088.9,3088.8,2.1929895]
[1765595717450,0.00245823,3088.9,3088.8,2.88452145]
[1765595717645,0.00245823,3088.9,3088.8,2.1929895]
[1765595719147,3.2078,3089.4,3089.3,0.7568]
[1765595719347,3.866,3090.6,3089.7,1.5356]
[1765595719348,3.9495,3089.8,3089.7,1.5356]
[1765595719550,3.9495,3089.8,3089.7,2.22713195]
[1765595719948,4.73,3090.2,3090.1,1.5107]
[1765595720147,5.69286999,3090.2,3090.1,1.5107]
[1765595720348,0.7719,3089.6,3089.5,1.9656]
[1765595720654,1.5222,3089.6,3089.5,1.1987]
[1765595720851,1.5222,3089.6,3089.5,1.9656]
[1765595721350,4.73,3089.8,3089.7,1.5107]
[1765595721842,4.73,3089.8,3089.7,0.7438]
[1765595722045,4.73,3089.8,3089.7,1.467]
[1765595722241,3.90167361,3090.2,3089.7,1.467]
[1765595722649,0.7363,3089.8,3089.7,1.467]
[1765595723744,0.7363,3089.8,3089.6,0.69153195]
[1765595723745,4.65794166,3090.2,3090.1,1.4512]
[1765595724150,4.65794166,3090.2,3090.1,0.728]
[1765595724351,4.65794166,3090.2,3090.1,1.4512]
[1765595725354,4.6556,3091.0,3090.9,0.728]
[1765595725560,1.4478,3090.8,3090.7,1.4512]
[1765595725763,1.4478,3090.8,3090.7,0.728]
[1765595726064,1.4478,3090.7,3090.6,0.73286042]
[1765595726259,1.45076897,3090.7,3090.6,0.73286042]
[1765595726457,1.45076897,3090.7,3090.6,2.14759237]
[1765595726659,0.00296897,3090.7,3090.6,2.14759237]
[1765595738365,0.00296897,3090.7,3090.6,2.14690151]
[1765595739867,0.00296897,3090.7,3090.6,1.45606042]
[1765595741555,0.73926897,3090.7,3090.6,1.45606042]
[1765595741969,1.45076897,3090.7,3090.6,1.45606042]
[1765595742372,0.73926897,3090.7,3090.6,1.45606042]
[1765595743169,1.45076897,3090.7,3090.6,1.45606042]
[1765595743373,0.73926897,3090.7,3090.6,1.45606042]
[1765595745872,0.00296897,3090.7,3090.6,1.45606042]
[1765595750769,0.73926897,3090.7,3090.6,1.45606042]
[1765595750969,1.45076897,3090.7,3090.6,0.00486042]
[1765595751472,1.45076897,3090.7,3090.6,0.73286042]
[1765595751674,1.45076897,3090.7,3090.6,1.45606042]
[1765595755474,0.73926897,3090.7,3090.6,1.45606042]
[1765595756277,0.00296897,3090.7,3090.6,1.45606042]
[1765595757375,0.74866897,3090.7,3090.6,1.45606042]
[1765595757879,0.00296897,3090.7,3090.6,1.45606042]
[1765595759076,0.00296897,3090.7,3090.6,1.49306042]
[1765595761280,0.74866897,3090.7,3090.6,1.49306042]
[1765595761479,1.50116897,3090.7,3090.6,1.49306042]
[1765595762985,1.50116897,3090.7,3090.6,0.00486042]
[1765595763176,1.50116897,3090.7,3090.6,0.76896042]
[1765595763378,1.50116897,3090.7,3090.6,1.49306042]
[1765595763882,1.50116897,3090.7,3090.6,0.76896042]
[1765595764278,1.50116897,3090.7,3090.6,0.00486042]
[1765595768278,0.7457,3090.2,3090.1,4.696]
[1765595768988,1.4982,3090.6,3090.5,0.4424]
[1765595770182,1.4982,3090.6,3090.5,1.2065]
[1765595770384,1.4982,3090.6,3090.5,1.9306]
[1765595771082,0.7457,3090.6,3090.5,1.9306]
[1765595771278,0.74866897,3090.7,3090.6,1.4882]
[1765595772079,0.00296897,3090.7,3090.6,1.4882]
[1765595772680,0.74866897,3090.7,3090.6,1.4882]
[1765595774390,1.50116897,3090.7,3090.6,1.4882]
[1765595775091,0.74866897,3090.7,3090.6,1.4882]
[1765595776186,0.00296897,3090.7,3090.6,1.4882]
[1765595782400,0.74136897,3090.7,3090.6,1.4882]
[1765595785703,0.00296897,3090.7,3090.6,1.4882]
[1765595795212,0.00296897,3090.7,3090.6,1.64996]
[1765595796406,0.00296897,3090.7,3090.6,2.3410169]
[1765595801616,0.74136897,3090.7,3090.6,1.64996]
[1765595801917,0.00296897,3090.7,3090.6,1.64996]
[1765595823532,0.00296897,3090.7,3090.6,2.34081606]
[1765595825126,0.00296897,3090.7,3090.6,1.64996]
[1765595835241,0.00296897,3090.7,3090.6,2.34075248]
[1765595835740,0.00296897,3090.7,3090.6,1.64996]
[1765595836039,0.77586897,3090.7,3090.6,1.64996]
[1765595836535,0.00296897,3090.7,3090.6,1.64996]
[1765595838540,0.77586897,3090.7,3090.6,1.64996]
[1765595839646,0.00296897,3090.7,3090.6,1.64996]
[1765595840649,0.00296897,3090.7,3090.6,2.34075248]
[1765595847451,0.00296897,3090.7,3090.6,1.64996]
[1765595851350,0.00486042,3090.9,3090.8,1.66115]
[1765595851651,0.00486042,3090.9,3090.8,5.55974248]
[1765595852256,0.00768921,3090.9,3090.8,5.55974248]
[1765595857958,0.00768921,3090.9,3090.8,4.86895]
[1765595873057,3.2078,3091.6,3091.5,1.8898]
[1765595874153,3.21104307,3091.6,3091.5,1.89256715]
[1765595875167,3.21104307,3091.6,3091.5,2.58317861]
[1765595878569,3.21104307,3091.6,3091.5,1.89256715]
[1765595878770,3.92064307,3091.6,3091.5,1.89256715]
[1765595879372,4.66694307,3091.6,3091.5,0.45906715]
[1765595879562,4.66694307,3091.6,3091.5,0.00276715]
[1765595880176,3.21104307,3091.6,3091.5,1.89256715]
[1765595880668,3.2078,3092.0,3091.9,1.4335]
[1765595881673,3.21059425,3092.0,3091.9,1.4335]
[1765595886681,3.92019425,3092.0,3091.9,1.4335]
[1765595887569,0.00279425,3092.0,3091.9,1.4335]
[1765595887771,0.00279425,3092.0,3091.9,1.59519]
[1765595889874,0.71239425,3092.0,3091.9,1.59519]
[1765595890875,0.00279425,3092.0,3091.9,1.59519]
[1765595897689,0.71239425,3092.0,3091.9,1.59519]
[1765595899796,0.00279425,3092.0,3091.9,2.2852958]
[1765595902394,0.76359425,3092.0,3091.9,2.2852958]
[1765595902798,0.00279425,3092.0,3091.9,2.2852958]
[1765595905500,0.76359425,3092.0,3091.9,1.59519]
[1765595906497,0.00279425,3092.0,3091.9,1.59519]
[1765595908100,0.76359425,3092.0,3091.9,1.59519]
[1765595912304,1.53729425,3092.0,3091.9,1.59519]
[1765595912707,1.5345,3091.9,3091.8,3.2078]
[1765595913699,1.5345,3091.1,3090.4,3.36957]
[1765595913900,1.5345,3090.6,3090.5,1.1594]
[1765595914212,1.5345,3090.6,3090.5,0.4424]
[1765595914510,1.5345,3090.6,3090.5,1.9025]
[1765595914710,1.5345,3090.6,3090.5,1.90492316]
[1765595915104,1.5345,3090.6,3090.5,1.16182316]
[1765595916506,1.5345,3090.6,3090.5,0.44482316]
[1765595917001,1.5345,3090.6,3090.5,0.00242316]
[1765595918214,1.5345,3090.1,3090.0,1.9137]
[1765595918416,0.7608,3090.1,3090.0,1.9137]
[1765595918616,1.5345,3090.1,3090.0,0.4536]
[1765595919113,1.5345,3090.1,3090.0,1.17471749]
[1765595919606,1.5345,3090.1,3090.0,1.91781749]
[1765595925921,1.5345,3090.1,3090.0,1.17471749]
[1765595926422,1.5345,3090.1,3090.0,1.91781749]
[1765595932220,1.5345,3090.1,3090.0,0.00411749]
[1765595933834,2.22576435,3090.1,3090.0,0.00411749]
[1765595937432,3.866,3090.2,3090.1,1.5553]
[1765595937736,5.357,3090.2,3090.1,1.5553]
[1765595938130,4.5978,3090.2,3090.1,1.5553]
[1765595938735,5.357,3090.2,3090.1,1.5553]
[1765595940032,1.491,3090.2,3090.1,1.5553]
[1765595941240,1.491,3090.2,3090.1,0.776]
[1765595941535,2.18226435,3090.2,3090.1,0.776]
[1765595941740,1.491,3090.1,3090.0,0.00411749]
[1765595942137,2.18226435,3090.1,3090.0,0.00411749]
[1765595943241,3.16549219,3090.1,3090.0,0.00411749]
[1765595946939,3.16549219,3090.1,3090.0,1e-08]
[1765595948144,1.491,3089.6,3089.5,0.4362]
[1765595948339,4.6988,3089.6,3089.5,0.4362]
[1765595948940,4.70247514,3089.6,3089.5,0.43964604]
[1765595949547,4.70247514,3089.6,3089.5,0.00344604]
[1765595952347,5.68587136,3089.6,3089.5,0.00344604]
[1765595957250,6.37713571,3089.6,3089.5,0.00344604]
[1765595957750,5.68587136,3089.6,3089.5,0.00344604]
[1765595960353,1.4805,3089.3,3089.2,0.00485248]
[1765595961054,2.17176435,3089.3,3089.2,0.00485248]
[1765595961453,2.17176435,3089.3,3089.2,0.00766595]
[1765595962254,1.4805,3089.3,3089.2,0.00766595]
[1765595962656,1.4805,3089.3,3089.2,1.48826595]
[1765595962856,1.4805,3089.3,3089.2,0.71906595]
[1765595963058,1.4805,3089.3,3089.2,1.48826595]
[1765595965054,3.93057514,3089.6,3089.5,1.9128]
[1765595965257,3.21147514,3089.6,3089.5,1.9128]
[1765595968158,3.93057514,3089.6,3089.5,1.9128]
[1765595968561,3.21147514,3089.6,3089.5,1.9128]
[1765595975262,3.21147514,3089.6,3089.5,2.76611924]
[1765595975866,0.00367514,3089.6,3089.5,2.76611924]
[1765595981174,0.00367514,3089.6,3089.5,2.07462]
[1765595981373,0.00367514,3089.6,3089.5,2.76611924]
[1765595983871,0.00367514,3089.6,3089.5,2.07462]
[1765595997294,0.00367514,3089.6,3089.5,2.76574763]
[1765596013703,0.00367514,3089.6,3089.5,5.97354763]
[1765596016401,0.00367514,3089.6,3089.5,5.28242]
[1765596016607,0.00367514,3089.6,3089.5,5.97354763]
[1765596019810,0.77007514,3089.6,3089.5,5.28242]
[1765596020899,1.50407514,3089.6,3089.5,2.07462]
[1765596021105,1.50407514,3089.6,3089.5,0.59402]
[1765596021306,1.50407514,3089.6,3089.5,1.29922]
[1765596023910,1.50407514,3089.6,3089.5,2.00422]
[1765596033418,0.00367514,3089.6,3089.5,2.00422]
[1765596035524,0.00367514,3089.6,3089.5,5.21202]
[1765596043925,0.00367514,3089.6,3089.5,5.90309988]
[1765596050431,0.00367514,3089.6,3089.5,5.21202]
[1765596050729,0.00367514,3089.6,3089.5,5.90309988]
[1765596053832,0.00367514,3089.6,3089.5,2.69529988]
[1765596054035,0.00367514,3089.6,3089.5,5.90309988]
[1765596063638,3.2078,3090.2,3090.1,1.60699]
[1765596063840,3.2078,3090.2,3090.1,2.29789688]
[1765596064043,3.9531,3090.2,3090.1,2.29789688]
[1765596064746,4.71905736,3090.2,3090.1,2.29789688]
[1765596065145,10.71905736,3090.2,3090.1,0.16179]
[1765596068450,7.51125736,3090.2,3090.1,0.16179]
[1765596070150,1.51125736,3090.2,3090.1,0.16179]
[1765596076149,7.51125736,3090.2,3090.1,0.16179]
[1765596076354,1.51125736,3090.2,3090.1,0.16179]
[1765596090670,7.51125736,3090.2,3090.1,0.16179]
[1765596091671,1.51125736,3090.2,3090.1,0.16179]
[1765596094971,1.4534,3089.6,3089.5,1.1654]
[1765596095179,5.35210688,3089.6,3089.5,0.4322]
[1765596096079,5.3526539,3089.6,3089.5,0.4322]
[1765596098076,5.3526539,3089.6,3089.5,1.1654]
[1765596099976,5.3526539,3089.6,3089.5,0.4322]
[1765596101381,5.3526539,3089.6,3089.5,1.1654]
[1765596102485,5.3526539,3089.6,3089.5,0.4322]
[1765596105885,4.6612,3089.6,3089.5,0.4322]
[1765596107891,1.4534,3089.3,3089.2,1.46826595]
[1765596108093,0.7424,3089.3,3089.2,1.46826595]
[1765596108486,4.6612,3089.6,3089.5,1.1597]
[1765596109891,4.6612,3089.6,3089.5,0.4265]
[1765596110488,4.6612,3089.6,3089.5,1.8871]
[1765596111192,4.6612,3089.6,3089.5,1.1597]
[1765596111391,0.7424,3090.1,3090.0,0.7274]
[1765596111692,0.00325736,3090.2,3090.1,1.4606]
[1765596111890,0.00325736,3090.2,3090.1,1.62239]
[1765596112299,3.21265248,3090.4,3090.3,1.64278]
[1765596112493,0.00485248,3090.4,3090.3,1.64278]
[1765596113287,0.00902953,3090.4,3090.3,1.64278]